bitfinex/quotes_BTCUSD_20250109
["timestamp","ask_amount","ask_price","bid_price","bid_amount"]
[1736399781078,0.27718922,94467.0,94458.0,0.10348543]
[1736399781412,0.15929976,94466.0,94457.0,0.10348543]
[1736399781621,0.211731,94460.0,94450.0,0.10398554]
[1736399781791,0.10429976,94459.0,94458.0,0.002]
[1736399782168,0.10429976,94459.0,94450.0,0.10398554]
[1736399782368,0.03628593,94458.0,94450.0,0.10398554]
[1736399782636,0.10429976,94457.0,94450.0,0.10398554]
[1736399783466,0.10429976,94457.0,94450.0,0.10598554]
[1736399784274,0.10429976,94457.0,94450.0,0.11298554]
[1736399784679,0.10429976,94457.0,94450.0,0.11098554]
[1736399785242,0.01658623,94456.0,94450.0,0.11298554]
[1736399785399,0.10429976,94455.0,94450.0,0.11298554]
[1736399785597,0.10429976,94455.0,94450.0,0.00050011]
[1736399785815,0.01658623,94456.0,94451.0,0.292449]
[1736399786012,0.3221,94464.0,94452.0,0.00105859]
[1736399786215,0.10429976,94463.0,94460.0,0.211727]
[1736399786426,0.3221,94464.0,94460.0,0.423456]
[1736399787452,0.3221,94464.0,94462.0,0.211725]
[1736399787691,4.34e-05,94471.0,94469.0,0.211708]
[1736399788006,4.34e-05,94471.0,94470.0,0.00105841]
[1736399788801,4.34e-05,94471.0,94469.0,0.211708]
[1736399789375,4.34e-05,94471.0,94470.0,0.006]
[1736399789583,0.01662605,94471.0,94470.0,0.006]
[1736399789786,0.01662605,94471.0,94470.0,0.002]
[1736399790203,0.01662605,94471.0,94469.0,0.218708]
[1736399790546,0.01662605,94471.0,94470.0,0.002]
[1736399791758,4.34e-05,94471.0,94470.0,0.002]
[1736399791966,4.34e-05,94471.0,94469.0,0.00105841]
[1736399792166,4.34e-05,94471.0,94470.0,0.007]
[1736399793028,4.34e-05,94471.0,94470.0,0.002]
[1736399793200,4.34e-05,94471.0,94470.0,0.009]
[1736399793604,4.34e-05,94471.0,94470.0,0.007]
[1736399793833,4.34e-05,94471.0,94470.0,0.009]
[1736399796210,0.15314316,94471.0,94470.0,0.009]
[1736399796726,0.15314316,94471.0,94470.0,0.007]
[1736399796942,0.15314316,94471.0,94461.0,0.10348543]
[1736399797142,0.31600676,94470.0,94461.0,0.10348543]
[1736399797816,0.10429976,94470.0,94461.0,0.10348543]
[1736399798968,0.211709,94469.0,94461.0,0.10348543]
[1736399799201,0.10429976,94468.0,94461.0,0.10348543]
[1736399799805,0.10429976,94468.0,94461.0,0.10648543]
[1736399800038,0.10429976,94468.0,94461.0,0.10348543]
[1736399800219,0.10429976,94468.0,94461.0,0.10648543]
[1736399800426,0.10429976,94468.0,94461.0,0.10448543]
[1736399801499,0.01658426,94467.0,94461.0,0.10448543]
[1736399801704,0.10429976,94466.0,94461.0,0.10848543]
[1736399802306,0.10429976,94466.0,94461.0,0.10748543]
[1736399802509,0.10429976,94466.0,94461.0,0.10348543]
[1736399802718,0.10429976,94466.0,94461.0,0.10448543]
[1736399803294,0.10429976,94466.0,94461.0,0.10348543]
[1736399803442,0.10429976,94466.0,94461.0,0.10948543]
[1736399807085,0.13496551,94466.0,94461.0,0.10948543]
[1736399808242,0.10429976,94466.0,94461.0,0.10948543]
[1736399810022,0.02158494,94464.0,94461.0,0.10948543]
[1736399810199,0.1258847,94464.0,94461.0,0.006]
[1736399810698,0.10429976,94464.0,94461.0,0.006]
[1736399811131,0.10429976,94464.0,94461.0,0.005]
[1736399811338,0.10429976,94464.0,94461.0,0.006]
[1736399811537,0.12088421,94464.0,94461.0,0.006]
[1736399812075,0.12088421,94464.0,94461.0,0.001]
[1736399812454,0.12088421,94464.0,94461.0,0.007]
[1736399814508,0.12088421,94464.0,94461.0,0.006]
[1736399814663,0.12088421,94464.0,94461.0,0.007]
[1736399815168,0.12088421,94464.0,94461.0,0.006]
[1736399815602,0.10429976,94464.0,94461.0,0.007]
[1736399822968,0.0488434,94471.0,94462.0,0.211725]
[1736399823168,4.34e-05,94471.0,94463.0,0.00105858]
[1736399823376,4.34e-05,94471.0,94467.0,0.211713]
[1736399823650,4.34e-05,94471.0,94468.0,0.00105843]
[1736399823852,0.02111168,94477.0,94471.0,0.00034385]
[1736399824082,0.12541144,94477.0,94471.0,0.00034385]
[1736399824619,0.01658331,94476.0,94471.0,0.00034385]
[1736399825479,0.33257707,94476.0,94471.0,0.00034385]
[1736399825688,0.10429976,94476.0,94471.0,0.00134385]
[1736399826267,0.10429976,94476.0,94471.0,0.00634385]
[1736399826498,0.10429976,94476.0,94471.0,0.00134385]
[1736399826709,0.10429976,94476.0,94471.0,0.00634385]
[1736399826939,0.10429976,94475.0,94471.0,0.00534385]
[1736399827110,0.31599576,94475.0,94471.0,0.00534385]
[1736399827320,0.31599576,94475.0,94471.0,0.00634385]
[1736399827769,0.31599576,94475.0,94471.0,0.00534385]
[1736399827953,0.2117,94473.0,94471.0,0.00534385]
[1736399828161,0.10429976,94472.0,94471.0,0.00534385]
[1736399828416,0.10429976,94472.0,94471.0,0.00634385]
[1736399828636,0.15009976,94472.0,94471.0,0.00634385]
[1736399829009,0.15009976,94472.0,94471.0,0.00534385]
[1736399829638,0.15009976,94472.0,94471.0,0.00034385]
[1736399829833,0.15009976,94472.0,94471.0,0.00634385]
[1736399830110,0.15009976,94472.0,94471.0,0.00034385]
[1736399830614,0.15009976,94472.0,94471.0,0.00934385]
[1736399831440,0.15009976,94472.0,94471.0,0.00734385]
[1736399831843,0.15009976,94472.0,94471.0,0.00934385]
[1736399832044,0.02111168,94477.0,94471.0,0.00934385]
[1736399832222,0.10429976,94476.0,94471.0,0.00934385]
[1736399832407,0.10429976,94476.0,94471.0,0.00734385]
[1736399832837,0.10429976,94476.0,94472.0,0.211702]
[1736399833410,0.01658328,94475.0,94472.0,0.211702]
[1736399833585,0.10429976,94474.0,94471.0,0.00734385]
[1736399833906,0.10429976,94474.0,94471.0,0.00034385]
[1736399834384,0.10429976,94474.0,94472.0,0.005]
[1736399834616,0.10429976,94474.0,94471.0,0.00234385]
[1736399834798,0.10429976,94474.0,94471.0,0.00034385]
[1736399835136,0.10429976,94474.0,94471.0,0.00134385]
[1736399835635,0.10429976,94474.0,94471.0,0.00034385]
[1736399835961,0.10429976,94474.0,94471.0,0.00134385]
[1736399836637,0.10429976,94474.0,94471.0,0.00734385]
[1736399837039,0.10429976,94474.0,94471.0,0.00134385]
[1736399837264,0.10429976,94474.0,94471.0,0.00634385]
[1736399837476,0.10429976,94474.0,94471.0,0.00034385]
[1736399837626,0.10429976,94474.0,94471.0,0.00134385]
[1736399837829,0.10429976,94474.0,94471.0,0.00734385]
[1736399838028,0.10429976,94474.0,94471.0,0.00634385]
[1736399838459,0.10429976,94474.0,94471.0,0.00734385]
[1736399838651,0.10429976,94474.0,94471.0,0.00134385]
[1736399839033,0.10429976,94474.0,94471.0,0.00034385]
[1736399839304,0.10429976,94474.0,94471.0,0.00134385]
[1736399840052,0.10429976,94474.0,94471.0,0.00634385]
[1736399841710,0.10429976,94474.0,94471.0,0.00534385]
[1736399841903,0.10429976,94474.0,94471.0,0.00034385]
[1736399842131,0.0475,94481.0,94471.0,0.00140233]
[1736399842445,0.0001704,94487.0,94482.0,0.423358]
[1736399843495,0.0001704,94487.0,94477.0,0.31514094]
[1736399843913,0.0001704,94487.0,94482.0,0.006]
[1736399844113,0.0001704,94487.0,94477.0,0.31514094]
[1736399844548,0.0001704,94487.0,94482.0,0.006]
[1736399844679,0.0001704,94487.0,94477.0,0.31514094]
[1736399845144,0.01658171,94485.0,94482.0,0.006]
[1736399846510,0.0001704,94487.0,94482.0,0.007]
[1736399846667,0.0001704,94487.0,94482.0,0.001]
[1736399847697,0.0001704,94487.0,94482.0,0.006]
[1736399847914,0.0001704,94487.0,94482.0,0.007]
[1736399848452,0.10429976,94486.0,94482.0,0.006]
[1736399848599,0.211676,94484.0,94482.0,0.006]
[1736399848799,0.10429976,94483.0,94482.0,0.007]
[1736399849207,0.10429976,94483.0,94482.0,0.006]
[1736399849618,0.10429976,94483.0,94482.0,0.007]
[1736399849871,0.14009605,94483.0,94482.0,0.007]
[1736399850070,0.14999976,94483.0,94482.0,0.001]
[1736399850284,0.14999976,94483.0,94482.0,0.006]
[1736399850701,0.14999976,94483.0,94482.0,0.001]
[1736399850911,0.21168,94482.0,94473.0,0.06787114]
[1736399851081,0.21169,94478.0,94473.0,0.06787114]
[1736399851286,0.10429976,94477.0,94471.0,0.00034385]
[1736399851688,0.423389,94476.0,94471.0,0.00034385]
[1736399851895,0.0786,94474.0,94471.0,0.00034385]
[1736399852102,0.259302,94472.0,94471.0,0.00034385]
[1736399852342,0.43450774,94472.0,94471.0,0.00034385]
[1736399852850,0.43450774,94472.0,94471.0,0.00234385]
[1736399853845,0.43450774,94472.0,94471.0,0.00934385]
[1736399854051,0.51310774,94472.0,94471.0,0.00934385]
[1736399854287,0.51310774,94472.0,94471.0,0.00034385]
[1736399854463,0.51310774,94472.0,94471.0,0.00534385]
[1736399855036,0.51310774,94472.0,94471.0,0.00334385]
[1736399855536,0.44204165,94472.0,94471.0,0.00334385]
[1736399855941,0.46370284,94472.0,94471.0,0.00334385]
[1736399856143,0.46370284,94472.0,94471.0,0.00034385]
[1736399856797,0.46370284,94472.0,94471.0,0.00334385]
[1736399858928,0.46370284,94472.0,94471.0,0.00034385]
[1736399859252,0.51622562,94472.0,94471.0,0.00134385]
[1736399859382,0.51622562,94472.0,94471.0,0.00034385]
[1736399859584,0.83832562,94472.0,94471.0,0.00034385]
[1736399859780,0.83832562,94472.0,94471.0,0.00134385]
[1736399860016,0.78580284,94472.0,94471.0,0.00034385]
[1736399860873,0.78680284,94472.0,94471.0,0.00034385]
[1736399861636,0.44906095,94472.0,94471.0,0.00034385]
[1736399862862,0.44806095,94472.0,94471.0,0.00034385]
[1736399864123,0.51890625,94472.0,94471.0,0.00434385]
[1736399864340,0.51990625,94472.0,94471.0,0.00434385]
[1736399864907,0.51890625,94472.0,94471.0,0.00434385]
[1736399865108,0.51890625,94472.0,94471.0,0.00534385]
[1736399865743,0.19680625,94472.0,94471.0,0.00534385]
[1736399867755,0.12596095,94472.0,94471.0,0.00534385]
[1736399870935,0.12596095,94472.0,94471.0,0.00034385]
[1736399872200,0.12596095,94472.0,94471.0,0.00334385]
[1736399872607,0.12596095,94472.0,94471.0,0.00034385]
[1736399872819,0.12596095,94472.0,94471.0,0.00434385]
[1736399873064,0.12596095,94472.0,94471.0,0.00534385]
[1736399873484,0.18639645,94472.0,94471.0,0.00534385]
[1736399873782,0.26649645,94472.0,94471.0,0.00134385]
[1736399874007,0.31199645,94472.0,94471.0,0.00434385]
[1736399874564,0.31199645,94472.0,94471.0,0.00334385]
[1736399875377,0.31199645,94472.0,94471.0,0.00034385]
[1736399875559,0.31199645,94472.0,94471.0,0.00234385]
[1736399875970,0.31199645,94472.0,94471.0,0.00034385]
[1736399876342,0.31199645,94472.0,94471.0,0.00134385]
[1736399877034,0.31199645,94472.0,94471.0,0.00034385]
[1736399877542,0.25156095,94472.0,94471.0,0.00134385]
[1736399878688,0.25156095,94472.0,94471.0,0.00034385]
[1736399879514,0.25156095,94472.0,94471.0,0.00134385]
[1736399880136,0.23983326,94472.0,94471.0,0.00134385]
[1736399881010,0.15973326,94472.0,94471.0,0.00134385]
[1736399881214,0.0476,94481.0,94471.0,0.00134385]
[1736399881407,0.055,94483.0,94471.0,0.13712195]
[1736399881408,0.10429976,94480.0,94471.0,0.13712195]
[1736399881858,0.10429976,94480.0,94472.0,0.211702]
[1736399882030,0.02139419,94479.0,94472.0,0.211702]
[1736399882231,0.10429976,94478.0,94472.0,0.211702]
[1736399883379,0.10429976,94478.0,94473.0,0.08]
[1736399884120,0.0001704,94487.0,94486.0,0.211671]
[1736399884314,0.0001704,94487.0,94486.0,0.291671]
[1736399885677,0.01675143,94487.0,94486.0,0.291671]
[1736399886023,0.0001704,94487.0,94486.0,0.292671]
[1736399886233,0.0001704,94487.0,94486.0,0.298671]
[1736399886995,0.0001704,94487.0,94486.0,0.292671]
[1736399887442,0.0001704,94487.0,94486.0,0.299671]
[1736399887927,0.0001704,94487.0,94486.0,0.298671]
[1736399888175,0.0001704,94487.0,94486.0,0.300671]
[1736399888612,0.0001704,94487.0,94486.0,0.298671]
[1736399888875,0.0001704,94487.0,94486.0,0.291671]
[1736399889089,0.0001704,94487.0,94486.0,0.298671]
[1736399892471,0.01675119,94487.0,94486.0,0.298671]
[1736399893073,0.01675119,94487.0,94486.0,0.292671]
[1736399893640,0.01675119,94487.0,94486.0,0.299671]
[1736399893841,0.01675119,94487.0,94486.0,0.292671]
[1736399894448,0.01675119,94487.0,94486.0,0.291671]
[1736399894663,0.01675119,94487.0,94486.0,0.293671]
[1736399895424,0.01675119,94487.0,94486.0,0.300671]
[1736399895683,0.01675119,94487.0,94486.0,0.304671]
[1736399895892,0.01675119,94487.0,94486.0,0.295671]
[1736399896121,0.01675119,94487.0,94486.0,0.300671]
[1736399896351,0.01675119,94487.0,94486.0,0.291671]
[1736399897051,0.01675119,94487.0,94486.0,0.300671]
[1736399897279,0.01675119,94487.0,94486.0,0.291671]
[1736399897711,0.0001704,94487.0,94486.0,0.295671]
[1736399898186,0.0001704,94487.0,94486.0,0.291671]
[1736399898555,0.0001704,94487.0,94486.0,0.304671]
[1736399902121,0.0001704,94487.0,94486.0,0.224671]
[1736399902827,0.0001704,94487.0,94486.0,0.220671]
[1736399903065,0.0001704,94487.0,94486.0,0.211671]
[1736399903243,0.0001704,94487.0,94486.0,0.220671]
[1736399904631,0.0001704,94487.0,94486.0,0.224671]
[1736399905039,0.0001704,94487.0,94486.0,0.215671]
[1736399905864,0.0001704,94487.0,94486.0,0.224671]
[1736399906228,0.0001704,94487.0,94486.0,0.215671]
[1736399906431,0.0001704,94487.0,94486.0,0.224671]
[1736399906747,0.0001704,94487.0,94486.0,0.215671]
[1736399907129,0.0001704,94487.0,94486.0,0.224671]
[1736399907562,0.0001704,94487.0,94486.0,0.220671]
[1736399908371,0.0001704,94487.0,94486.0,0.211671]
[1736399908574,0.0001704,94487.0,94486.0,0.214671]
[1736399908828,0.0001704,94487.0,94486.0,0.223671]
[1736399909028,0.0001704,94487.0,94486.0,0.211671]
[1736399909340,0.0001704,94487.0,94486.0,0.214671]
[1736399909547,0.0001704,94487.0,94486.0,0.223671]
[1736399909755,0.0001704,94487.0,94486.0,0.214671]
[1736399909961,0.0001704,94487.0,94486.0,0.223671]
[1736399910681,0.0001704,94487.0,94486.0,0.220671]
[1736399911100,0.0001704,94487.0,94486.0,0.223671]
[1736399911570,0.0001704,94487.0,94486.0,0.211671]
[1736399911772,0.0001704,94487.0,94486.0,0.214671]
[1736399911971,0.0001704,94487.0,94486.0,0.222671]
[1736399912179,0.0001704,94487.0,94486.0,0.214671]
[1736399912501,0.0001704,94487.0,94486.0,0.223671]
[1736399912931,0.0001704,94487.0,94486.0,0.214671]
[1736399913146,0.0001704,94487.0,94486.0,0.222671]
[1736399913339,0.0001704,94487.0,94486.0,0.214671]
[1736399913719,0.0001704,94487.0,94486.0,0.211671]
[1736399914159,0.0001704,94487.0,94486.0,0.002]
[1736399914662,0.0001704,94487.0,94486.0,0.211671]
[1736399914877,0.0001704,94487.0,94486.0,0.220671]
[1736399915080,0.0001704,94487.0,94486.0,0.213671]
[1736399915466,0.0001704,94487.0,94486.0,0.219671]
[1736399915702,0.01675123,94487.0,94486.0,0.213671]
[1736399916100,0.01675123,94487.0,94486.0,0.220671]
[1736399916303,0.01675123,94487.0,94486.0,0.213671]
[1736399916726,0.01675123,94487.0,94486.0,0.221671]
[1736399917503,0.01675123,94487.0,94486.0,0.219671]
[1736399917878,0.01675123,94487.0,94486.0,0.213671]
[1736399918110,0.0001704,94487.0,94486.0,0.213671]
[1736399918319,0.0001704,94487.0,94486.0,0.220671]
[1736399918475,0.0001704,94487.0,94486.0,0.213671]
[1736399918886,0.0001704,94487.0,94486.0,0.221671]
[1736399919181,0.0001704,94487.0,94486.0,0.211671]
[1736399919388,0.0001704,94487.0,94486.0,0.220671]
[1736399919772,0.0001704,94487.0,94486.0,0.213671]
[1736399920772,0.0001704,94487.0,94486.0,0.211671]
[1736399921308,0.0001704,94487.0,94486.0,0.221671]
[1736399921500,0.0001704,94487.0,94486.0,0.213671]
[1736399921734,0.0001704,94487.0,94486.0,0.218671]
[1736399922044,0.0001704,94487.0,94486.0,0.213671]
[1736399922478,0.0001704,94487.0,94486.0,0.211671]
[1736399922785,0.0001704,94487.0,94486.0,0.213671]
[1736399922963,0.0001704,94487.0,94486.0,0.221671]
[1736399924703,0.0001704,94487.0,94486.0,0.211671]
[1736399924909,0.0001704,94487.0,94486.0,0.213671]
[1736399925110,0.0001704,94487.0,94486.0,0.220671]
[1736399925451,0.0001704,94487.0,94486.0,0.218671]
[1736399925664,0.10447016,94487.0,94486.0,0.015]
[1736399925892,0.26640032,94487.0,94486.0,0.017]
[1736399926668,0.26640032,94487.0,94477.0,0.34738988]
[1736399926820,0.10429976,94486.0,94477.0,0.34738988]
[1736399927033,0.10429976,94486.0,94477.0,0.06784994]
[1736399927233,0.211673,94485.0,94477.0,0.06784994]
[1736399927468,0.211678,94483.0,94476.0,0.06784994]
[1736399927656,0.211682,94481.0,94476.0,0.06784994]
[1736399927858,0.10429976,94480.0,94471.0,0.06819379]
[1736399928648,0.10429976,94480.0,94477.0,0.008]
[1736399928849,0.10429976,94480.0,94476.0,0.002]
[1736399929046,0.02734539,94479.0,94476.0,0.002]
[1736399929251,0.10429976,94478.0,94476.0,0.002]
[1736399929469,0.10429976,94478.0,94472.0,0.211702]
[1736399929678,0.10429976,94478.0,94477.0,0.009]
[1736399929984,0.10429976,94478.0,94477.0,0.012]
[1736399930157,0.14740174,94478.0,94477.0,0.012]
[1736399931155,0.14740174,94478.0,94471.0,0.06819379]
[1736399931680,0.14740174,94478.0,94472.0,0.004]
[1736399932042,0.14740174,94478.0,94471.0,0.06819379]
[1736399932256,0.14740174,94478.0,94476.0,0.009]
[1736399932455,0.06692277,94477.0,94476.0,0.009]
[1736399932705,0.17122253,94477.0,94468.0,0.06784994]
[1736399932879,0.10429976,94476.0,94468.0,0.06784994]
[1736399933097,0.10429976,94476.0,94471.0,0.003]
[1736399933335,0.16806891,94476.0,94471.0,0.003]
[1736399933556,0.10429976,94476.0,94471.0,0.003]
[1736399934612,0.10429976,94476.0,94472.0,0.008]
[1736399935032,0.12088293,94476.0,94469.0,0.211709]
[1736399935227,0.12188293,94476.0,94471.0,0.009]
[1736399935471,0.12188293,94476.0,94469.0,0.211709]
[1736399935675,0.12088293,94476.0,94471.0,0.003]
[1736399935923,0.12175553,94476.0,94472.0,0.009]
[1736399936302,0.12075553,94476.0,94471.0,0.003]
[1736399936645,0.12175553,94476.0,94471.0,0.008]
[1736399937416,0.01758317,94476.0,94472.0,0.0812]
[1736399937669,0.001,94476.0,94473.0,0.21275851]
[1736399937835,0.0001704,94487.0,94486.0,0.211671]
[1736399938510,0.00022038,94487.0,94486.0,0.211671]
[1736399938918,0.00022038,94487.0,94484.0,0.211675]
[1736399939355,0.00122038,94487.0,94486.0,0.008]
[1736399939535,0.00842406,94487.0,94486.0,0.008]
[1736399939705,0.00742406,94487.0,94486.0,0.002]
[1736399940968,0.00742406,94487.0,94486.0,0.008]
[1736399941379,0.00742406,94487.0,94486.0,0.002]
[1736399941589,0.02400577,94487.0,94486.0,0.006]
[1736399941824,0.00742406,94487.0,94486.0,0.008]
[1736399942525,0.00742406,94487.0,94484.0,0.211675]
[1736399942701,0.00742406,94487.0,94486.0,0.002]
[1736399942898,0.00742406,94487.0,94486.0,0.008]
[1736399943876,0.02400581,94487.0,94486.0,0.008]
[1736399944077,0.12830557,94487.0,94486.0,0.006]
[1736399944690,0.211671,94486.0,94484.0,0.002]
[1736399944978,0.16555248,94485.0,94477.0,0.10340903]
[1736399945215,0.16555248,94485.0,94474.0,0.211697]
[1736399945216,0.16555248,94485.0,94471.0,0.211705]
[1736399945415,0.0473,94484.0,94471.0,0.211705]
[1736399945532,0.10429976,94483.0,94471.0,0.211705]
[1736399946139,0.10429976,94483.0,94477.0,0.004]
[1736399946346,0.05092475,94482.0,94477.0,0.004]
[1736399946562,0.10429976,94481.0,94477.0,0.004]
[1736399947545,0.10429976,94481.0,94471.0,0.211705]
[1736399947745,0.10429976,94481.0,94471.0,0.42341]
[1736399947945,0.10429976,94481.0,94475.0,0.211694]
[1736399948537,0.10429976,94481.0,94477.0,0.002]
[1736399948741,0.10429976,94481.0,94475.0,0.211694]
[1736399949134,0.03706948,94480.0,94475.0,0.211694]
[1736399949306,0.14136924,94480.0,94475.0,0.211694]
[1736399950732,0.10429976,94480.0,94475.0,0.211694]
[1736399951268,0.10429976,94480.0,94475.0,0.213694]
[1736399951480,0.10429976,94480.0,94475.0,0.211694]
[1736399951796,0.10429976,94480.0,94475.0,0.214694]
[1736399954435,0.10429976,94480.0,94475.0,0.211694]
[1736399954753,0.01658278,94479.0,94475.0,0.214694]
[1736399955337,0.01658278,94479.0,94475.0,0.211694]
[1736399955712,0.01658278,94479.0,94475.0,0.214694]
[1736399956157,0.01658278,94479.0,94475.0,0.211694]
[1736399956319,0.01658278,94479.0,94475.0,0.215694]
[1736399957573,0.01658278,94479.0,94475.0,0.216694]
[1736399958391,0.01681825,94478.0,94475.0,0.215694]
[1736399958749,0.01681825,94478.0,94475.0,0.212694]
[1736399959142,0.01681825,94478.0,94475.0,0.216694]
[1736399959317,0.01681825,94478.0,94475.0,0.212694]
[1736399959663,0.10429976,94480.0,94475.0,0.217694]
[1736399960242,0.10429976,94480.0,94475.0,0.216694]
[1736399960591,0.10429976,94480.0,94475.0,0.217694]
[1736399961010,0.10429976,94480.0,94475.0,0.211694]
[1736399961422,0.10429976,94480.0,94475.0,0.215694]
[1736399961652,0.10429976,94480.0,94475.0,0.211694]
[1736399962071,0.10429976,94480.0,94475.0,0.214694]
[1736399962304,0.01042998,94479.0,94475.0,0.003]
[1736399963648,0.01042998,94479.0,94475.0,0.214695]
[1736399963851,0.01042998,94479.0,94475.0,0.215695]
[1736399964105,0.10429976,94480.0,94475.0,0.212695]
[1736399964504,0.10429976,94480.0,94475.0,0.216695]
[1736399964684,0.10429976,94480.0,94475.0,0.215695]
[1736399965232,0.10429976,94480.0,94475.0,0.212695]
[1736399965633,0.10429976,94480.0,94475.0,0.215695]
[1736399966181,0.01658275,94479.0,94475.0,0.215695]
[1736399966394,0.01658275,94479.0,94475.0,0.214695]
[1736399967388,0.01658275,94479.0,94475.0,0.211695]
[1736399967627,0.01658275,94479.0,94475.0,0.212695]
[1736399967800,0.01658275,94479.0,94475.0,0.216695]
[1736399969017,0.01658275,94479.0,94475.0,0.212695]
[1736399969226,0.01658275,94479.0,94475.0,0.216695]
[1736399969462,0.01208825,94478.0,94475.0,0.215695]
[1736399969946,0.01208825,94478.0,94475.0,0.216695]
[1736399970322,0.01208825,94478.0,94475.0,0.215695]
[1736399970542,0.01208825,94478.0,94475.0,0.212695]
[1736399970951,0.01208825,94478.0,94475.0,0.217695]
[1736399971179,0.0328064,94477.0,94475.0,0.001]
[1736399971307,0.0328064,94477.0,94471.0,0.211705]
[1736399971539,0.0328064,94477.0,94475.0,0.004]
[1736399971960,0.01208825,94478.0,94475.0,0.004]
[1736399972166,0.01208825,94478.0,94475.0,0.215695]
[1736399972527,0.10429976,94480.0,94475.0,0.211695]
[1736399972647,0.10429976,94480.0,94475.0,0.212695]
[1736399973050,0.10429976,94480.0,94471.0,0.216705]
[1736399973444,0.10429976,94480.0,94475.0,0.001]
[1736399973799,0.10429976,94480.0,94471.0,0.216705]
[1736399974009,0.03159758,94479.0,94471.0,0.216705]
[1736399974366,0.03159758,94479.0,94471.0,0.42841]
[1736399974904,0.03159758,94479.0,94471.0,0.42341]
[1736399975158,0.10429976,94478.0,94475.0,0.004]
[1736399975457,0.211703,94472.0,94465.0,0.09505039]
[1736399975676,0.211703,94472.0,94471.0,0.004]
[1736399976107,0.211694,94476.0,94471.0,0.005]
[1736399976389,0.211694,94476.0,94471.0,0.001]
[1736399976650,0.03475733,94477.0,94461.0,0.09505039]
[1736399976890,0.423422,94468.0,94465.0,0.006]
[1736399977141,0.211716,94466.0,94465.0,0.006]
[1736399977368,0.31601576,94466.0,94465.0,0.006]
[1736399977974,0.31601576,94466.0,94452.0,0.09505039]
[1736399978215,0.21172,94464.0,94450.0,0.10348033]
[1736399978422,0.211725,94462.0,94454.0,0.10348033]
[1736399978625,0.10429976,94461.0,94454.0,0.10348033]
[1736399979704,0.10429976,94461.0,94454.0,0.11248033]
[1736399979913,0.06723572,94460.0,94454.0,0.10548033]
[1736399980087,0.10429976,94459.0,94454.0,0.10548033]
[1736399980298,0.10429976,94459.0,94454.0,0.10348033]
[1736399980675,0.10429976,94459.0,94454.0,0.002]
[1736399981303,0.10429976,94459.0,94454.0,0.008]
[1736399981715,0.10429976,94459.0,94454.0,0.002]
[1736399981917,0.10429976,94459.0,94454.0,0.009]
[1736399982123,0.10429976,94459.0,94454.0,0.007]
[1736399982281,0.10429976,94459.0,94454.0,0.009]
[1736399982643,0.11956115,94459.0,94454.0,0.009]
[1736399984228,0.02127189,94457.0,94454.0,0.009]
[1736399984458,0.10429976,94456.0,94454.0,0.009]
[1736399985338,0.10429976,94456.0,94453.0,0.211743]
[1736399985573,0.10429976,94456.0,94454.0,0.01150011]
[1736399985758,0.0140833,94455.0,94454.0,0.01150011]
[1736399986205,0.0140833,94455.0,94454.0,0.00950011]
[1736399986400,0.0140833,94455.0,94454.0,0.01150011]
[1736399986874,0.0140833,94455.0,94454.0,0.00950011]
[1736399987316,0.0140833,94455.0,94454.0,0.01250011]
[1736399987704,0.0140833,94455.0,94454.0,0.00350011]
[1736399987920,0.0140833,94455.0,94454.0,0.01250011]
[1736399991216,0.10429976,94456.0,94455.0,0.211741]
[1736399992339,0.10429976,94456.0,94455.0,0.213741]
[1736399993143,0.10429976,94456.0,94455.0,0.222741]
[1736399994691,0.10429976,94456.0,94455.0,0.220741]
[1736399995013,0.10429976,94456.0,94455.0,0.001]
[1736399995350,0.10429976,94456.0,94455.0,0.006]
[1736399995600,0.10429976,94456.0,94454.0,0.00050011]
[1736399995601,0.11685693,94456.0,94454.0,0.00050011]
[1736399995830,0.11685693,94456.0,94455.0,0.011]
[1736399996238,0.11685693,94456.0,94454.0,0.00050011]
[1736399996543,0.11685693,94456.0,94455.0,0.006]
[1736399996769,0.11685693,94456.0,94455.0,0.007]
[1736399997855,0.11685693,94456.0,94454.0,0.00050011]
[1736399998111,0.02183288,94455.0,94454.0,0.00050011]
[1736399998387,0.02183288,94455.0,94454.0,0.00250011]
[1736399998592,0.02183288,94455.0,94454.0,0.00050011]
[1736399998928,0.02183288,94455.0,94454.0,0.00150011]
[1736399999338,0.02183288,94455.0,94454.0,0.00050011]
[1736399999769,0.02183288,94455.0,94454.0,0.00550011]
[1736400000104,0.0384184,94455.0,94454.0,0.00550011]
[1736400000359,0.02183288,94455.0,94454.0,0.00550011]
[1736400001006,0.10429976,94456.0,94454.0,0.00550011]
[1736400001448,0.10429976,94456.0,94454.0,0.00450011]
[1736400001687,0.10429976,94456.0,94454.0,0.00150011]
[1736400001892,0.10429976,94456.0,94455.0,0.211741]
[1736400002112,0.10429976,94456.0,94454.0,0.00550011]
[1736400002316,0.10429976,94456.0,94454.0,0.00050011]
[1736400002614,0.10429976,94456.0,94454.0,0.00550011]
[1736400002991,0.10429976,94456.0,94455.0,0.211741]
[1736400003604,0.12088489,94456.0,94455.0,0.211741]
[1736400005401,0.12088489,94456.0,94455.0,0.005]
[1736400006737,0.11851544,94456.0,94455.0,0.005]
[1736400013020,0.10429976,94456.0,94455.0,0.005]
[1736400021373,0.10429976,94456.0,94455.0,0.0805]
[1736400021854,0.10429976,94456.0,94455.0,0.005]
[1736400023045,0.10429976,94456.0,94455.0,0.001]
[1736400023285,0.10429976,94456.0,94455.0,0.005]
[1736400023960,0.10429976,94456.0,94455.0,0.004]
[1736400024420,0.10429976,94456.0,94455.0,0.005]
[1736400025874,0.12088466,94456.0,94455.0,0.005]
[1736400026561,0.55358363,94472.0,94463.0,0.211722]
[1736400026805,0.10429976,94471.0,94463.0,0.211722]
[1736400027719,0.10429976,94471.0,94463.0,0.423444]
[1736400027944,0.04518009,94470.0,94463.0,0.211722]
[1736400028323,0.10429976,94469.0,94463.0,0.211722]
[1736400028668,0.02110712,94467.0,94463.0,0.211722]
[1736400028894,0.10429976,94466.0,94463.0,0.213722]
[1736400029258,0.10429976,94466.0,94463.0,0.211722]
[1736400029460,0.10429976,94466.0,94463.0,0.214722]
[1736400029875,0.10429976,94466.0,94463.0,0.211722]
[1736400030706,0.10429976,94466.0,94460.0,0.0679073]
[1736400030912,0.10429976,94466.0,94460.0,0.2796353]
[1736400031323,0.10429976,94466.0,94463.0,0.005]
[1736400031497,0.10429976,94466.0,94463.0,0.001]
[1736400031961,0.10429976,94466.0,94460.0,0.2846353]